[Event "Titled Tuesday Blitz December 27 Late 2022"]
[White "Poltorak, Sebastian"]
[Black "Fisher_TheGalactic"]
[WhiteFideId "1199498"]
[WhiteElo "2354"]
[BlackElo "2477"]
[Result "0-1"]
[Round "10"]
[TimeControl "180+2"]
[Date "2022.12.27"]
[WhiteClock "0:00:05"]
[BlackClock "0:00:06"]

1. e4 {[%clk 0:03:00]}  b6 {[%clk 0:02:59]} 2. g3 {[%clk 0:02:56]}  Bb7 {[%clk 0:02:59]} 3. Bg2 {[%clk 0:02:56]}  e6 {[%clk 0:02:59]} 4. Ne2 {[%clk 0:02:53]}  d5 {[%clk 0:02:59]} 5. d3 {[%clk 0:02:52]}  dxe4 {[%clk 0:02:58]} 6. dxe4 {[%clk 0:02:52]}  Qxd1+ {[%clk 0:02:59]} 7. Kxd1 {[%clk 0:02:53]}  Nf6 {[%clk 0:02:59]} 8. Nd2 {[%clk 0:02:52]}  Nbd7 {[%clk 0:02:58]} 9. c3 {[%clk 0:02:52]}  O-O-O {[%clk 0:02:58]} 10. Kc2 {[%clk 0:02:52]}  Nc5 {[%clk 0:02:54]} 11. f3 {[%clk 0:02:52]}  Ba6 {[%clk 0:02:54]} 12. Bf1 {[%clk 0:02:37]}  Bd3+ {[%clk 0:02:46]} 13. Kd1 {[%clk 0:02:36]}  Be7 {[%clk 0:02:21]} 14. Nf4 {[%clk 0:02:35]}  Bxf1 {[%clk 0:02:16]} 15. Rxf1 {[%clk 0:02:35]}  e5 {[%clk 0:02:16]} 16. Ng2 {[%clk 0:02:32]}  Rd7 {[%clk 0:02:12]} 17. Ne3 {[%clk 0:02:24]}  Rhd8 {[%clk 0:02:11]} 18. Rf2 {[%clk 0:02:24]}  Nd3 {[%clk 0:01:59]} 19. Re2 {[%clk 0:02:20]}  Bc5 {[%clk 0:01:55]} 20. Nec4 {[%clk 0:02:07]}  b5 {[%clk 0:01:45]} 21. Na5 {[%clk 0:02:04]}  Nxc1 {[%clk 0:01:33]} 22. Rxc1 {[%clk 0:01:57]}  g5 {[%clk 0:01:25]} 23. g4 {[%clk 0:01:51]}  h5 {[%clk 0:01:24]} 24. h3 {[%clk 0:01:47]}  Rh8 {[%clk 0:01:18]} 25. Kc2 {[%clk 0:01:43]}  hxg4 {[%clk 0:01:17]} 26. hxg4 {[%clk 0:01:43]}  Ne8 {[%clk 0:01:05]} 27. Nab3 {[%clk 0:01:22]}  Bb6 {[%clk 0:01:03]} 28. Ra1 {[%clk 0:01:23]}  Ng7 {[%clk 0:01:00]} 29. a4 {[%clk 0:01:22]}  bxa4 {[%clk 0:00:55]} 30. Rxa4 {[%clk 0:01:22]}  Ne6 {[%clk 0:00:55]} 31. Re1 {[%clk 0:00:57]}  Rh2 {[%clk 0:00:54]} 32. Rc4 {[%clk 0:00:54]}  Nf4 {[%clk 0:00:48]} 33. Rc6 {[%clk 0:00:50]}  Ng2 {[%clk 0:00:41]} 34. Ra1 {[%clk 0:00:42]}  Ne3+ {[%clk 0:00:39]} 35. Kb1 {[%clk 0:00:35]}  Rdxd2 {[%clk 0:00:36]} 36. Nxd2 {[%clk 0:00:35]}  Rxd2 {[%clk 0:00:37]} 37. Rf6 {[%clk 0:00:30]}  Nc4 {[%clk 0:00:35]} 38. Ra2 {[%clk 0:00:30]}  Nd6 {[%clk 0:00:15]} 39. Ra4 {[%clk 0:00:26]}  Be3 {[%clk 0:00:15]} 40. Ka2 {[%clk 0:00:25]}  Kb7 {[%clk 0:00:14]} 41. Rh6 {[%clk 0:00:21]}  Rf2 {[%clk 0:00:13]} 42. Rh3 {[%clk 0:00:18]}  Rf1 {[%clk 0:00:12]} 43. Kb3 {[%clk 0:00:17]}  Rf2 {[%clk 0:00:11]} 44. Ra1 {[%clk 0:00:17]}  Bf4 {[%clk 0:00:07]} 45. Rd1 {[%clk 0:00:17]}  Re2 {[%clk 0:00:06]} 46. Ka3 {[%clk 0:00:13]}  Kc6 {[%clk 0:00:07]} 47. Kb3 {[%clk 0:00:13]}  a5 {[%clk 0:00:07]} 48. Ra1 {[%clk 0:00:13]}  Kb6 {[%clk 0:00:07]} 49. Rh8 {[%clk 0:00:12]}  Nb7 {[%clk 0:00:06]} 50. Rf8 {[%clk 0:00:11]}  Nc5+ {[%clk 0:00:06]} 51. Kc4 {[%clk 0:00:11]}  Rxb2 {[%clk 0:00:05]} 52. Rxf7 {[%clk 0:00:10]}  a4 {[%clk 0:00:05]} 53. Rf6+ {[%clk 0:00:11]}  c6 {[%clk 0:00:05]} 54. Rd1 {[%clk 0:00:08]}  a3 {[%clk 0:00:04]} 55. Rf8 {[%clk 0:00:07]}  Nb7 {[%clk 0:00:04]} 56. Ra8 {[%clk 0:00:05]}  a2 {[%clk 0:00:03]} 57. Ra3 {[%clk 0:00:03]}  Na5+ {[%clk 0:00:03]} 58. Kd3 {[%clk 0:00:03]}  Nb3 {[%clk 0:00:03]} 59. Kc4 {[%clk 0:00:01]}  a1=Q {[%clk 0:00:03]} 60. Rdxa1 {[%clk 0:00:02]}  Nxa1 {[%clk 0:00:04]} 61. Ra8 {[%clk 0:00:02]}  Nc2 {[%clk 0:00:04]} 62. Rb8+ {[%clk 0:00:02]}  Kc7 {[%clk 0:00:04]} 63. Rxb2 {[%clk 0:00:03]}  Ne3+ {[%clk 0:00:04]} 64. Kd3 {[%clk 0:00:04]}  Nd1 {[%clk 0:00:01]} 65. Rc2 {[%clk 0:00:02]}  Ne3 {[%clk 0:00:02]} 66. Re2 {[%clk 0:00:03]}  Nd1 {[%clk 0:00:02]} 67. Kc2 {[%clk 0:00:03]}  Ne3+ {[%clk 0:00:02]} 68. Kb3 {[%clk 0:00:04]}  c5 {[%clk 0:00:02]} 69. Ra2 {[%clk 0:00:03]}  Kc6 {[%clk 0:00:02]} 70. Ra6+ {[%clk 0:00:03]}  Kb5 {[%clk 0:00:03]} 71. Rg6 {[%clk 0:00:03]}  c4+ {[%clk 0:00:03]} 72. Kb2 {[%clk 0:00:03]}  Nd1+ {[%clk 0:00:04]} 73. Kc2 {[%clk 0:00:03]}  Ne3+ {[%clk 0:00:04]} 74. Kb1 {[%clk 0:00:04]}  Nd1 {[%clk 0:00:05]} 75. Kc2 {[%clk 0:00:04]}  Ne3+ {[%clk 0:00:05]} 76. Kc1 {[%clk 0:00:01]}  Ka4 {[%clk 0:00:05]} 77. Rb6 {[%clk 0:00:01]}  Ka5 {[%clk 0:00:05]} 78. Rb8 {[%clk 0:00:01]}  Nxg4+ {[%clk 0:00:03]} 79. Kb2 {[%clk 0:00:01]}  Nh2 {[%clk 0:00:04]} 80. Rc8 {[%clk 0:00:01]}  Nxf3 {[%clk 0:00:04]} 81. Rxc4 {[%clk 0:00:01]}  g4 {[%clk 0:00:05]} 82. Rc5+ {[%clk 0:00:02]}  Kb6 {[%clk 0:00:05]} 83. Rc8 {[%clk 0:00:03]}  g3 {[%clk 0:00:05]} 84. Rg8 {[%clk 0:00:04]}  Ne1 {[%clk 0:00:05]} 85. c4 {[%clk 0:00:03]}  g2 {[%clk 0:00:05]} 86. Kc3 {[%clk 0:00:03]}  Be3 {[%clk 0:00:05]} 87. Rg6+ {[%clk 0:00:03]}  Kc7 {[%clk 0:00:05]} 88. c5 {[%clk 0:00:03]}  Bxc5 {[%clk 0:00:05]} 89. Kc4 {[%clk 0:00:03]}  g1=Q {[%clk 0:00:04]} 90. Rxg1 {[%clk 0:00:03]}  Bxg1 {[%clk 0:00:05]} 91. Kd5 {[%clk 0:00:04]}  Bd4 {[%clk 0:00:06]} 92. Ke6 {[%clk 0:00:04]}  Nf3 {[%clk 0:00:05]} 93. Kd5 {[%clk 0:00:05]}  Nd2 {[%clk 0:00:06]} 0-1


[Site "https://www.chess.com"]

[Event "Titled Tuesday Blitz December 27 Late 2022"]
[White "Rasulov, Vugar"]
[Black "Barp, Alberto"]
[WhiteFideId "13402390"]
[BlackFideId "872555"]
[WhiteElo "2523"]
[BlackElo "2432"]
[Result "0-1"]
[Round "10"]
[TimeControl "180+2"]
[Date "2022.12.27"]
[WhiteClock "0:00:02"]
[BlackClock "0:00:05"]

1. e4 {[%clk 0:03:00]}  e5 {[%clk 0:02:53]} 2. Nf3 {[%clk 0:03:01]}  Nc6 {[%clk 0:02:52]} 3. Nc3 {[%clk 0:03:01]}  Nf6 {[%clk 0:02:52]} 4. d4 {[%clk 0:03:02]}  exd4 {[%clk 0:02:53]} 5. Nxd4 {[%clk 0:03:03]}  Bb4 {[%clk 0:02:52]} 6. Nxc6 {[%clk 0:03:03]}  bxc6 {[%clk 0:02:53]} 7. Bd3 {[%clk 0:03:03]}  d6 {[%clk 0:02:53]} 8. O-O {[%clk 0:03:02]}  O-O {[%clk 0:02:53]} 9. h3 {[%clk 0:03:02]}  h6 {[%clk 0:02:53]} 10. Re1 {[%clk 0:02:56]}  Re8 {[%clk 0:02:53]} 11. a3 {[%clk 0:02:56]}  Bxc3 {[%clk 0:02:47]} 12. bxc3 {[%clk 0:02:57]}  Nd7 {[%clk 0:02:47]} 13. c4 {[%clk 0:02:57]}  c5 {[%clk 0:02:45]} 14. Bb2 {[%clk 0:02:56]}  Qg5 {[%clk 0:02:44]} 15. Re3 {[%clk 0:02:46]}  Ne5 {[%clk 0:02:40]} 16. Rg3 {[%clk 0:02:46]}  Qf4 {[%clk 0:02:39]} 17. Qh5 {[%clk 0:02:39]}  Be6 {[%clk 0:02:12]} 18. Bc1 {[%clk 0:02:23]}  Qf6 {[%clk 0:02:10]} 19. Bxh6 {[%clk 0:02:13]}  Ng4 {[%clk 0:02:05]} 20. Rxg4 {[%clk 0:01:26]}  Bxg4 {[%clk 0:01:57]} 21. Qxg4 {[%clk 0:01:27]}  Qxa1+ {[%clk 0:01:48]} 22. Kh2 {[%clk 0:01:28]}  Qf6 {[%clk 0:01:45]} 23. Be3 {[%clk 0:01:28]}  Re6 {[%clk 0:01:38]} 24. f4 {[%clk 0:01:25]}  Rae8 {[%clk 0:01:37]} 25. Bf2 {[%clk 0:01:17]}  Rxe4 {[%clk 0:01:30]} 26. Bxe4 {[%clk 0:01:16]}  Rxe4 {[%clk 0:01:31]} 27. Qc8+ {[%clk 0:00:58]}  Kh7 {[%clk 0:01:30]} 28. Qxc7 {[%clk 0:00:58]}  Re2 {[%clk 0:01:15]} 29. Bg3 {[%clk 0:00:50]}  Qe6 {[%clk 0:01:09]} 30. Qd8 {[%clk 0:00:39]}  f6 {[%clk 0:00:57]} 31. Qa8 {[%clk 0:00:23]}  Qe4 {[%clk 0:00:54]} 32. Qxe4+ {[%clk 0:00:24]}  Rxe4 {[%clk 0:00:55]} 33. f5 {[%clk 0:00:25]}  Rxc4 {[%clk 0:00:54]} 34. Bxd6 {[%clk 0:00:25]}  Rxc2 {[%clk 0:00:54]} 35. Kg3 {[%clk 0:00:25]}  c4 {[%clk 0:00:54]} 36. Bb4 {[%clk 0:00:24]}  Rb2 {[%clk 0:00:50]} 37. Kf3 {[%clk 0:00:22]}  Rb3+ {[%clk 0:00:44]} 38. Ke4 {[%clk 0:00:22]}  Rg3 {[%clk 0:00:43]} 39. Kd4 {[%clk 0:00:21]}  Rxg2 {[%clk 0:00:43]} 40. Bc5 {[%clk 0:00:21]}  a6 {[%clk 0:00:39]} 41. Kxc4 {[%clk 0:00:21]}  Rg3 {[%clk 0:00:36]} 42. Kb4 {[%clk 0:00:21]}  Rf3 {[%clk 0:00:31]} 43. h4 {[%clk 0:00:18]}  Rxf5 {[%clk 0:00:31]} 44. a4 {[%clk 0:00:18]}  Re5 {[%clk 0:00:30]} 45. Bd6 {[%clk 0:00:18]}  a5+ {[%clk 0:00:27]} 46. Kc4 {[%clk 0:00:18]}  Rh5 {[%clk 0:00:26]} 47. Bc7 {[%clk 0:00:17]}  Kg6 {[%clk 0:00:24]} 48. Bd6 {[%clk 0:00:16]}  Kf7 {[%clk 0:00:24]} 49. Bc7 {[%clk 0:00:16]}  Ke6 {[%clk 0:00:24]} 50. Bb6 {[%clk 0:00:17]}  Kd7 {[%clk 0:00:24]} 51. Bf2 {[%clk 0:00:13]}  Kc6 {[%clk 0:00:24]} 52. Bg3 {[%clk 0:00:13]}  Rf5 {[%clk 0:00:24]} 53. Kd4 {[%clk 0:00:13]}  Rf3 {[%clk 0:00:23]} 54. Be1 {[%clk 0:00:12]}  Ra3 {[%clk 0:00:21]} 55. Ke4 {[%clk 0:00:12]}  Rxa4+ {[%clk 0:00:21]} 56. Kf5 {[%clk 0:00:12]}  Ra2 {[%clk 0:00:19]} 57. h5 {[%clk 0:00:11]}  a4 {[%clk 0:00:18]} 58. Bb4 {[%clk 0:00:09]}  Rg2 {[%clk 0:00:17]} 59. Bf8 {[%clk 0:00:09]}  Kb5 {[%clk 0:00:18]} 60. Ke6 {[%clk 0:00:09]}  Kc4 {[%clk 0:00:17]} 61. Kf7 {[%clk 0:00:09]}  Kb3 {[%clk 0:00:16]} 62. Bxg7 {[%clk 0:00:10]}  f5 {[%clk 0:00:14]} 63. h6 {[%clk 0:00:04]}  Rh2 {[%clk 0:00:14]} 64. Kg6 {[%clk 0:00:04]}  f4 {[%clk 0:00:15]} 65. Be5 {[%clk 0:00:03]}  Rh4 {[%clk 0:00:09]} 66. Kg5 {[%clk 0:00:02]}  Rxh6 {[%clk 0:00:06]} 67. Bxf4 {[%clk 0:00:01]}  Rc6 {[%clk 0:00:05]} 68. Kf5 {[%clk 0:00:02]}  Rc2 {[%clk 0:00:05]} 0-1


[Site "https://www.chess.com"]

[Event "Titled Tuesday Blitz December 27 Late 2022"]
[White "Rego, Pedro Filipe"]
[Black "Toncheva, Nadya"]
[WhiteFideId "1904310"]
[BlackFideId "2924056"]
[WhiteElo "2312"]
[BlackElo "2295"]
[Result "1-0"]
[Round "10"]
[TimeControl "180+2"]
[Date "2022.12.27"]
[WhiteClock "0:00:17"]
[BlackClock "0:00:36"]

1. d4 {[%clk 0:02:58]}  d5 {[%clk 0:03:00]} 2. Nc3 {[%clk 0:02:51]}  Nf6 {[%clk 0:02:59]} 3. Bf4 {[%clk 0:02:52]}  c5 {[%clk 0:02:59]} 4. e3 {[%clk 0:02:51]}  cxd4 {[%clk 0:02:57]} 5. exd4 {[%clk 0:02:52]}  Bg4 {[%clk 0:02:54]} 6. f3 {[%clk 0:02:50]}  Bd7 {[%clk 0:02:55]} 7. Bd3 {[%clk 0:02:48]}  e6 {[%clk 0:02:53]} 8. Nge2 {[%clk 0:02:48]}  Bb4 {[%clk 0:02:48]} 9. a3 {[%clk 0:02:45]}  Be7 {[%clk 0:02:45]} 10. Qd2 {[%clk 0:02:41]}  O-O {[%clk 0:02:44]} 11. g4 {[%clk 0:02:40]}  Nc6 {[%clk 0:02:43]} 12. Bg3 {[%clk 0:02:37]}  a6 {[%clk 0:02:37]} 13. h4 {[%clk 0:02:37]}  b5 {[%clk 0:02:36]} 14. h5 {[%clk 0:02:36]}  Ne8 {[%clk 0:02:28]} 15. f4 {[%clk 0:02:31]}  b4 {[%clk 0:02:20]} 16. axb4 {[%clk 0:02:21]}  Nxb4 {[%clk 0:02:19]} 17. g5 {[%clk 0:02:21]}  Nxd3+ {[%clk 0:02:18]} 18. Qxd3 {[%clk 0:02:22]}  Nd6 {[%clk 0:02:09]} 19. Rxa6 {[%clk 0:01:51]}  Rxa6 {[%clk 0:02:06]} 20. Qxa6 {[%clk 0:01:51]}  Nf5 {[%clk 0:02:06]} 21. Bf2 {[%clk 0:01:50]}  Qb8 {[%clk 0:01:59]} 22. Kd2 {[%clk 0:01:43]}  Bd6 {[%clk 0:01:56]} 23. Be3 {[%clk 0:01:13]}  Rc8 {[%clk 0:01:43]} 24. Ra1 {[%clk 0:01:06]}  Nxe3 {[%clk 0:01:40]} 25. Kxe3 {[%clk 0:01:07]}  Qxb2 {[%clk 0:01:38]} 26. Qxd6 {[%clk 0:00:46]}  Qxa1 {[%clk 0:01:31]} 27. Qxd7 {[%clk 0:00:46]}  Qa6 {[%clk 0:01:06]} 28. h6 {[%clk 0:00:36]}  Qc6 {[%clk 0:01:00]} 29. Qxc6 {[%clk 0:00:34]}  Rxc6 {[%clk 0:01:01]} 30. hxg7 {[%clk 0:00:34]}  Kxg7 {[%clk 0:01:02]} 31. Kd3 {[%clk 0:00:34]}  h6 {[%clk 0:01:01]} 32. gxh6+ {[%clk 0:00:32]}  Kxh6 {[%clk 0:01:02]} 33. Ng3 {[%clk 0:00:32]}  Kg7 {[%clk 0:01:01]} 34. f5 {[%clk 0:00:30]}  Kf6 {[%clk 0:01:01]} 35. fxe6 {[%clk 0:00:30]}  fxe6 {[%clk 0:01:01]} 36. Nge2 {[%clk 0:00:25]}  Rc8 {[%clk 0:01:00]} 37. Na4 {[%clk 0:00:24]}  Ra8 {[%clk 0:00:58]} 38. Nc5 {[%clk 0:00:24]}  Ra3+ {[%clk 0:00:58]} 39. c3 {[%clk 0:00:24]}  Ra1 {[%clk 0:00:57]} 40. Nf4 {[%clk 0:00:24]}  Re1 {[%clk 0:00:52]} 41. Nfxe6 {[%clk 0:00:22]}  Ke7 {[%clk 0:00:48]} 42. Nc7 {[%clk 0:00:20]}  Rd1+ {[%clk 0:00:45]} 43. Kc2 {[%clk 0:00:19]}  Rh1 {[%clk 0:00:40]} 44. Nxd5+ {[%clk 0:00:19]}  Kd6 {[%clk 0:00:40]} 45. Nb4 {[%clk 0:00:19]}  Rh2+ {[%clk 0:00:38]} 46. Kb3 {[%clk 0:00:19]}  Rh3 {[%clk 0:00:38]} 47. Kc4 {[%clk 0:00:19]}  Rg3 {[%clk 0:00:36]} 48. Ne4+ {[%clk 0:00:17]} 1-0


[Site "https://www.chess.com"]

[Event "Titled Tuesday Blitz December 27 Late 2022"]
[White "Rodriguez Fontecha, Marcos"]
[Black "Vaibhav Jayant Raut"]
[WhiteFideId "2256576"]
[BlackFideId "5089034"]
[WhiteElo "2309"]
[BlackElo "2237"]
[Result "0-1"]
[Round "10"]
[TimeControl "180+2"]
[Date "2022.12.27"]
[WhiteClock "0:00:03"]
[BlackClock "0:00:15"]

1. Nf3 {[%clk 0:03:00]}  Nf6 {[%clk 0:02:59]} 2. g4 {[%clk 0:03:00]}  Nxg4 {[%clk 0:02:59]} 3. e4 {[%clk 0:03:01]}  d6 {[%clk 0:02:55]} 4. Nc3 {[%clk 0:03:01]}  e5 {[%clk 0:02:49]} 5. d4 {[%clk 0:03:00]}  exd4 {[%clk 0:02:47]} 6. Nxd4 {[%clk 0:03:00]}  Be7 {[%clk 0:02:33]} 7. Rg1 {[%clk 0:03:01]}  h5 {[%clk 0:02:12]} 8. h3 {[%clk 0:02:53]}  Ne5 {[%clk 0:02:12]} 9. Rxg7 {[%clk 0:02:49]}  Bh4 {[%clk 0:02:12]} 10. Be3 {[%clk 0:02:37]}  Qf6 {[%clk 0:01:57]} 11. Rg2 {[%clk 0:02:35]}  Bxh3 {[%clk 0:01:50]} 12. Nd5 {[%clk 0:02:30]}  Qd8 {[%clk 0:01:48]} 13. Rg1 {[%clk 0:01:50]}  Bxf1 {[%clk 0:01:41]} 14. Rxf1 {[%clk 0:01:47]}  c6 {[%clk 0:01:39]} 15. Nf4 {[%clk 0:01:43]}  Nc4 {[%clk 0:01:36]} 16. Nf5 {[%clk 0:01:31]}  Nxe3 {[%clk 0:01:32]} 17. Nxe3 {[%clk 0:01:32]}  Bg5 {[%clk 0:01:18]} 18. Qf3 {[%clk 0:01:02]}  Nd7 {[%clk 0:01:18]} 19. Nf5 {[%clk 0:00:36]}  Ne5 {[%clk 0:01:17]} 20. Qe3 {[%clk 0:00:21]}  Qa5+ {[%clk 0:00:57]} 21. c3 {[%clk 0:00:20]}  O-O-O {[%clk 0:00:58]} 22. O-O-O {[%clk 0:00:15]}  Qxa2 {[%clk 0:00:53]} 23. Rg1 {[%clk 0:00:13]}  Qa1+ {[%clk 0:00:44]} 24. Kc2 {[%clk 0:00:13]}  Qa4+ {[%clk 0:00:44]} 25. Kb1 {[%clk 0:00:13]}  f6 {[%clk 0:00:40]} 26. Rd4 {[%clk 0:00:07]}  Qb3 {[%clk 0:00:35]} 27. Rxg5 {[%clk 0:00:07]}  fxg5 {[%clk 0:00:34]} 28. Ne2 {[%clk 0:00:05]}  Nc4 {[%clk 0:00:33]} 29. Qc1 {[%clk 0:00:04]}  Na3+ {[%clk 0:00:33]} 30. Ka1 {[%clk 0:00:04]}  Nc2+ {[%clk 0:00:33]} 31. Kb1 {[%clk 0:00:04]}  Nxd4 {[%clk 0:00:34]} 32. Nexd4 {[%clk 0:00:05]}  Qc4 {[%clk 0:00:34]} 33. Qxg5 {[%clk 0:00:05]}  Qd3+ {[%clk 0:00:26]} 34. Ka1 {[%clk 0:00:04]}  Qxe4 {[%clk 0:00:26]} 35. Qg7 {[%clk 0:00:05]}  Qe5 {[%clk 0:00:20]} 36. Ne7+ {[%clk 0:00:02]}  Kd7 {[%clk 0:00:15]} 37. Nexc6+ {[%clk 0:00:03]}  Qxg7 {[%clk 0:00:15]} 0-1


[Site "https://www.chess.com"]

[Event "Titled Tuesday Blitz December 27 Late 2022"]
[White "Rustemov, Alexander"]
[Black "Martinez Ramirez, Lennis"]
[WhiteFideId "4119002"]
[BlackFideId "3509079"]
[WhiteElo "2525"]
[BlackElo "2426"]
[Result "1-0"]
[Round "10"]
[TimeControl "180+2"]
[Date "2022.12.27"]
[WhiteClock "0:00:37"]
[BlackClock "0:00:01"]

1. d4 {[%clk 0:02:57]}  d5 {[%clk 0:02:59]} 2. c4 {[%clk 0:02:56]}  c6 {[%clk 0:03:00]} 3. Nc3 {[%clk 0:02:54]}  Nf6 {[%clk 0:03:01]} 4. e3 {[%clk 0:02:54]}  Bf5 {[%clk 0:02:59]} 5. cxd5 {[%clk 0:02:53]}  Nxd5 {[%clk 0:02:57]} 6. Bc4 {[%clk 0:02:52]}  e6 {[%clk 0:02:56]} 7. Nge2 {[%clk 0:02:50]}  Bg6 {[%clk 0:02:52]} 8. O-O {[%clk 0:02:47]}  Nd7 {[%clk 0:02:51]} 9. e4 {[%clk 0:02:48]}  Nxc3 {[%clk 0:02:51]} 10. Nxc3 {[%clk 0:02:48]}  Be7 {[%clk 0:02:48]} 11. Be3 {[%clk 0:02:44]}  Nf6 {[%clk 0:02:46]} 12. f3 {[%clk 0:02:44]}  O-O {[%clk 0:02:45]} 13. Qe2 {[%clk 0:02:43]}  a5 {[%clk 0:02:44]} 14. Rfd1 {[%clk 0:02:36]}  b5 {[%clk 0:02:44]} 15. Bd3 {[%clk 0:02:32]}  Qb8 {[%clk 0:02:45]} 16. Rac1 {[%clk 0:02:28]}  a4 {[%clk 0:02:36]} 17. Qc2 {[%clk 0:02:05]}  Rc8 {[%clk 0:02:34]} 18. Ne2 {[%clk 0:02:04]}  c5 {[%clk 0:02:11]} 19. dxc5 {[%clk 0:01:57]}  Nd7 {[%clk 0:02:11]} 20. c6 {[%clk 0:01:58]}  Ne5 {[%clk 0:02:11]} 21. c7 {[%clk 0:01:54]}  Qb7 {[%clk 0:02:10]} 22. Nd4 {[%clk 0:01:46]}  Nxd3 {[%clk 0:01:42]} 23. Rxd3 {[%clk 0:01:46]}  Bd6 {[%clk 0:01:42]} 24. Rc3 {[%clk 0:01:36]}  b4 {[%clk 0:01:37]} 25. Rc6 {[%clk 0:01:35]}  Be5 {[%clk 0:01:17]} 26. Qc5 {[%clk 0:01:35]}  b3 {[%clk 0:00:39]} 27. a3 {[%clk 0:01:34]}  Bxd4 {[%clk 0:00:38]} 28. Bxd4 {[%clk 0:01:33]}  h6 {[%clk 0:00:34]} 29. Rc4 {[%clk 0:01:22]}  Ra6 {[%clk 0:00:25]} 30. Rb6 {[%clk 0:00:55]}  Qa8 {[%clk 0:00:13]} 31. Qc6 {[%clk 0:00:39]}  Qxc6 {[%clk 0:00:06]} 32. Rcxc6 {[%clk 0:00:38]}  Rxb6 {[%clk 0:00:01]} 33. Bxb6 {[%clk 0:00:37]}  Kf8 {[%clk 0:00:01]} 34. Rd6 {[%clk 0:00:37]}  Ke7 {[%clk 0:00:01]} 35. Rd8 {[%clk 0:00:37]} 1-0


[Site "https://www.chess.com"]

[Event "Titled Tuesday Blitz December 27 Late 2022"]
[White "Sadilek, Peter"]
[Black "Przybylski, Wojciech"]
[WhiteFideId "1616439"]
[BlackFideId "1117599"]
[WhiteElo "2314"]
[BlackElo "2321"]
[Result "1/2-1/2"]
[Round "10"]
[TimeControl "180+2"]
[Date "2022.12.27"]
[WhiteClock "0:00:06"]
[BlackClock "0:00:07"]

1. Nf3 {[%clk 0:02:59]}  Nf6 {[%clk 0:02:52]} 2. c4 {[%clk 0:02:57]}  c5 {[%clk 0:02:50]} 3. Nc3 {[%clk 0:02:57]}  Nc6 {[%clk 0:02:49]} 4. e3 {[%clk 0:02:57]}  e5 {[%clk 0:02:49]} 5. Be2 {[%clk 0:02:57]}  Be7 {[%clk 0:02:48]} 6. d4 {[%clk 0:02:52]}  exd4 {[%clk 0:02:47]} 7. exd4 {[%clk 0:02:53]}  O-O {[%clk 0:02:46]} 8. d5 {[%clk 0:02:52]}  Nd4 {[%clk 0:02:46]} 9. Nxd4 {[%clk 0:02:50]}  cxd4 {[%clk 0:02:45]} 10. Qxd4 {[%clk 0:02:51]}  d6 {[%clk 0:02:41]} 11. O-O {[%clk 0:02:52]}  Re8 {[%clk 0:02:39]} 12. Bd3 {[%clk 0:02:43]}  Bg4 {[%clk 0:02:33]} 13. Bg5 {[%clk 0:02:39]}  Bh5 {[%clk 0:02:29]} 14. Qh4 {[%clk 0:02:38]}  Bg6 {[%clk 0:02:28]} 15. Bxg6 {[%clk 0:02:38]}  hxg6 {[%clk 0:02:27]} 16. Rfe1 {[%clk 0:02:37]}  Rc8 {[%clk 0:02:21]} 17. h3 {[%clk 0:02:31]}  Bf8 {[%clk 0:02:16]} 18. Bxf6 {[%clk 0:02:28]}  gxf6 {[%clk 0:02:11]} 19. Rxe8 {[%clk 0:02:15]}  Qxe8 {[%clk 0:02:10]} 20. Ne4 {[%clk 0:02:16]}  Qe7 {[%clk 0:01:42]} 21. Re1 {[%clk 0:01:59]}  Bg7 {[%clk 0:01:41]} 22. b3 {[%clk 0:01:23]}  b5 {[%clk 0:01:23]} 23. Re3 {[%clk 0:01:07]}  bxc4 {[%clk 0:01:17]} 24. bxc4 {[%clk 0:01:08]}  Qe5 {[%clk 0:01:13]} 25. Nc3 {[%clk 0:00:40]}  Qf5 {[%clk 0:01:06]} 26. Qe4 {[%clk 0:00:41]}  Qxe4 {[%clk 0:01:02]} 27. Nxe4 {[%clk 0:00:41]}  Rxc4 {[%clk 0:00:57]} 28. Nxd6 {[%clk 0:00:42]}  Rd4 {[%clk 0:00:49]} 29. Re8+ {[%clk 0:00:42]}  Kh7 {[%clk 0:00:49]} 30. Nxf7 {[%clk 0:00:41]}  Rxd5 {[%clk 0:00:48]} 31. Re7 {[%clk 0:00:42]}  a5 {[%clk 0:00:47]} 32. Ra7 {[%clk 0:00:38]}  Kg8 {[%clk 0:00:43]} 33. f4 {[%clk 0:00:26]}  Bf8 {[%clk 0:00:40]} 34. Kh2 {[%clk 0:00:24]}  Rd2 {[%clk 0:00:36]} 35. a4 {[%clk 0:00:19]}  Rd4 {[%clk 0:00:34]} 36. Kg3 {[%clk 0:00:19]}  Rxa4 {[%clk 0:00:27]} 37. Nd8 {[%clk 0:00:19]}  Ra3+ {[%clk 0:00:24]} 38. Kg4 {[%clk 0:00:19]}  Re3 {[%clk 0:00:21]} 39. f5 {[%clk 0:00:18]}  Re4+ {[%clk 0:00:20]} 40. Kf3 {[%clk 0:00:17]}  gxf5 {[%clk 0:00:20]} 41. g4 {[%clk 0:00:18]}  Re8 {[%clk 0:00:18]} 42. Nc6 {[%clk 0:00:12]}  fxg4+ {[%clk 0:00:18]} 43. Kxg4 {[%clk 0:00:13]}  Re6 {[%clk 0:00:15]} 44. Nxa5 {[%clk 0:00:08]}  Re5 {[%clk 0:00:15]} 45. Nc6 {[%clk 0:00:08]}  Rg5+ {[%clk 0:00:15]} 46. Kf3 {[%clk 0:00:07]}  Bd6 {[%clk 0:00:15]} 47. Rd7 {[%clk 0:00:06]}  Bh2 {[%clk 0:00:14]} 48. h4 {[%clk 0:00:05]}  Rg7 {[%clk 0:00:14]} 49. Rxg7+ {[%clk 0:00:05]}  Kxg7 {[%clk 0:00:14]} 50. Kg4 {[%clk 0:00:06]}  Bd6 {[%clk 0:00:11]} 51. Nd4 {[%clk 0:00:06]}  Kg6 {[%clk 0:00:11]} 52. Nf5 {[%clk 0:00:07]}  Bc5 {[%clk 0:00:11]} 53. h5+ {[%clk 0:00:08]}  Kf7 {[%clk 0:00:10]} 54. Nh4 {[%clk 0:00:07]}  Be3 {[%clk 0:00:10]} 55. Kf5 {[%clk 0:00:07]}  Bd2 {[%clk 0:00:10]} 56. Nf3 {[%clk 0:00:06]}  Bc1 {[%clk 0:00:10]} 57. Nd4 {[%clk 0:00:06]}  Be3 {[%clk 0:00:09]} 58. Nf3 {[%clk 0:00:05]}  Bc1 {[%clk 0:00:09]} 59. Nd4 {[%clk 0:00:05]}  Bd2 {[%clk 0:00:09]} 60. Nc6 {[%clk 0:00:05]}  Be3 {[%clk 0:00:09]} 61. Nb4 {[%clk 0:00:05]}  Bd2 {[%clk 0:00:09]} 62. Nd5 {[%clk 0:00:06]}  Bg5 {[%clk 0:00:09]} 63. Nc3 {[%clk 0:00:04]}  Kg7 {[%clk 0:00:08]} 64. Ne4 {[%clk 0:00:05]}  Bh4 {[%clk 0:00:08]} 65. Nd6 {[%clk 0:00:04]}  Kh6 {[%clk 0:00:07]} 66. Ne8 {[%clk 0:00:05]}  Kxh5 {[%clk 0:00:07]} 67. Nxf6+ {[%clk 0:00:06]} 1/2-1/2


[Site "https://www.chess.com"]